bitfinex/quotes_SOLUSD_20250216
["timestamp","ask_amount","ask_price","bid_price","bid_amount"]
[1739747265659,0.03,188.84,188.82,15.17328543]
[1739747265962,0.03,188.84,188.81,20.46948543]
[1739747266960,0.03,188.84,188.8,81.5]
[1739747272668,6.5568,188.84,188.76,0.063]
[1739747273779,5.2957,188.83,188.76,0.063]
[1739747274175,18.5351,188.83,188.76,0.063]
[1739747275389,5.2957,188.83,188.76,0.063]
[1739747275770,11.8523,188.84,188.76,20.53398543]
[1739747277182,6.5568,188.84,188.77,15.17328543]
[1739747277890,11.8523,188.84,188.77,15.17328543]
[1739747278692,6.5568,188.84,188.78,15.17328543]
[1739747278897,0.03,188.84,188.78,15.17328543]
[1739747279291,0.03,188.84,188.79,5.2968]
[1739747279770,0.03,188.84,188.79,20.47008543]
[1739747279970,0.03,188.84,188.81,15.17328543]
[1739747280371,0.03,188.84,188.82,15.17328543]
[1739747281187,0.03,188.84,188.83,15.17328543]
[1739747281498,0.03,188.84,188.83,20.46898543]
[1739747281700,0.03,188.84,188.83,15.17328543]
[1739747282494,0.03,188.84,188.82,20.46928543]
[1739747282680,0.03,188.84,188.83,15.17328543]
[1739747283283,0.03,188.84,188.82,20.46928543]
[1739747283678,0.03,188.84,188.83,15.17328543]
[1739747286785,0.03,188.84,188.82,15.17328543]
[1739747287007,0.03,188.84,188.8,20.46968543]
[1739747287482,0.03,188.84,188.81,15.17328543]
[1739747287678,0.03,188.84,188.83,15.17328543]
[1739747289398,0.03,188.84,188.83,20.46898543]
[1739747289600,0.03,188.84,188.83,33.88083396]
[1739747290105,0.03,188.84,188.83,20.46898543]
[1739747292210,0.03,188.84,188.83,33.88083396]
[1739747292701,0.03,188.84,188.83,34.67483868]
[1739747293006,0.03,188.85,188.84,15.41184853]
[1739747293007,0.0001,188.85,188.84,15.41184853]
[1739747293211,0.0001,188.85,188.84,30.58513396]
[1739747293905,0.0001,188.85,188.84,29.58513396]
[1739747294123,0.0001,188.85,188.84,28.58513396]
[1739747294324,0.0001,188.85,188.84,34.67444943]
[1739747295024,0.0001,188.85,188.84,36.67444943]
[1739747295225,0.0001,188.85,188.84,118.17444943]
[1739747295526,0.0001,188.85,188.84,117.38053396]
[1739747295717,0.0001,188.85,188.84,116.38053396]
[1739747295919,0.0001,188.85,188.84,117.38053396]
[1739747296420,0.0001,188.85,188.84,116.38053396]
[1739747296620,0.0001,188.85,188.84,117.38053396]
[1739747297133,0.03,188.89,188.88,35.17328543]
[1739747297421,0.03,188.89,188.88,117.46702996]
[1739747297620,0.03,188.89,188.88,116.67328543]
[1739747298403,0.03,188.89,188.88,121.96758543]
[1739747301712,0.03,188.89,188.88,116.67328543]
[1739747301916,0.03,188.89,188.88,101.5]
[1739747302222,0.03,188.89,188.88,81.5]
[1739747302622,0.03,188.89,188.87,15.17328543]
[1739747302812,0.03,188.89,188.86,15.17328543]
[1739747303007,0.03,188.89,188.84,15.17328543]
[1739747303222,0.03,188.89,188.83,15.17328543]
[1739747305230,5.324,188.89,188.83,15.17328543]
[1739747305413,5.324,188.89,188.82,15.17328543]
[1739747305923,5.324,188.89,188.85,0.063]
[1739747306104,0.03,188.89,188.85,0.063]
[1739747306504,0.03,188.89,188.85,15.23628543]
[1739747306731,0.03,188.89,188.86,15.17328543]
[1739747307832,0.03,188.89,188.88,15.17328543]
[1739747308425,0.03,188.89,188.87,15.17328543]
[1739747309529,0.03,188.89,188.86,6.08878101]
[1739747309530,0.03,188.89,188.88,15.17328543]
[1739747309719,0.03,188.89,188.88,21.26152656]
[1739747311619,0.03,188.89,188.88,20.46758543]
[1739747312308,0.03,188.89,188.88,5.2943]
[1739747312512,0.03,188.89,188.87,20.46778543]
[1739747312855,0.03,188.89,188.87,5.2945]
[1739747314045,0.03,188.89,188.85,86.8581]
[1739747315319,0.03,188.89,188.85,81.563]
[1739747317543,0.03,188.89,188.85,0.063]
[1739747321850,1.548,188.87,188.85,0.063]
[1739747323739,5.2949,188.86,188.85,0.063]
[1739747324231,18.70674853,188.86,188.85,0.063]
[1739747324425,18.70674853,188.86,188.77,81.5]
[1739747324426,31.94404853,188.86,188.77,81.5]
[1739747324625,31.94404853,188.86,188.76,0.063]
[1739747325452,13.41184853,188.85,188.76,0.063]
[1739747325951,20.0,188.83,188.76,0.063]
[1739747328146,5.296,188.82,188.76,0.063]
[1739747330954,5.2966,188.8,188.76,0.063]
[1739747333123,20.0,188.77,188.76,0.063]
[1739747333327,20.0,188.76,188.67,5.3]
[1739747333559,13.41184853,188.75,188.66,0.063]
[1739747333748,4.3,188.76,188.66,0.063]
[1739747333749,33.41184853,188.76,188.66,0.063]
[1739747333940,1.595,188.75,188.66,0.063]
[1739747334143,3.7244415,188.75,188.66,0.063]
[1739747334441,13.41184853,188.73,188.66,0.063]
[1739747335040,5.2985,188.73,188.66,0.063]
[1739747340860,18.71034853,188.73,188.66,0.063]
[1739747341754,13.41184853,188.72,188.66,0.063]
[1739747342657,5.2988,188.72,188.66,0.063]
[1739747344338,18.71064853,188.72,188.66,0.063]
[1739747344665,20.0,188.69,188.66,0.063]
[1739747344834,5.2999,188.68,188.66,0.063]
[1739747346370,33.41184853,188.67,188.66,0.063]
[1739747346553,33.41184853,188.67,188.57,0.0001]
[1739747346554,13.41184853,188.66,188.57,0.0001]
[1739747347475,13.41184853,188.64,188.57,0.0001]
[1739747348472,5.3013,188.63,188.57,0.0001]
[1739747348971,5.3011,188.64,188.57,0.0001]
[1739747350152,31.96564853,188.64,188.57,0.0001]
[1739747350473,18.5538,188.64,188.57,0.0001]
[1739747350653,5.3011,188.64,188.57,0.0001]
[1739747351275,31.96564853,188.64,188.57,0.0001]
[1739747352779,5.3011,188.64,188.57,0.0001]
[1739747354396,5.3011,188.64,188.57,15.1963215]
[1739747354883,5.3011,188.64,188.57,0.0001]
[1739747356569,1.517,188.65,188.57,15.1963215]
[1739747356765,1.517,188.65,188.58,15.1962215]
[1739747357079,1.517,188.65,188.57,0.0001]
[1739747357970,6.8179,188.65,188.57,5.3031]
[1739747358566,6.8179,188.65,188.57,0.0001]
[1739747360566,20.0699,188.65,188.57,0.0001]
[1739747361061,13.41184853,188.64,188.57,0.0001]
[1739747361956,20.0699,188.65,188.57,0.0001]
[1739747362584,6.8179,188.65,188.57,0.0001]
[1739747362891,1.517,188.65,188.58,15.1962215]
[1739747363178,13.2502,188.68,188.6,15.1962215]
[1739747363179,20.0,188.68,188.6,15.1962215]
[1739747363379,25.3,188.68,188.6,15.1962215]
[1739747364050,6.8303,188.69,188.61,20.4981215]
[1739747364254,6.8303,188.69,188.62,15.1962215]
[1739747364557,6.8303,188.69,188.59,5.3022]
[1739747364980,20.0,188.66,188.58,81.5]
[1739747365181,4.3,188.65,188.58,81.5]
[1739747365361,20.0,188.63,188.57,0.0001]
[1739747366361,5.3016,188.62,188.57,0.0001]
[1739747366867,20.0,188.63,188.57,0.0001]
[1739747367580,5.301,188.65,188.57,0.0001]
[1739747367783,82.33,188.66,188.58,15.1962215]
[1739747368358,87.6305,188.66,188.58,20.4988215]
[1739747368582,5.3305,188.66,188.58,5.3026]
[1739747368971,5.3305,188.66,188.57,5.3031]
[1739747370095,0.03,188.66,188.57,5.3031]
[1739747370294,20.0,188.65,188.57,0.0001]
[1739747370479,0.03,188.66,188.57,0.0001]
[1739747370999,20.0,188.64,188.57,0.0001]
[1739747371778,20.0,188.6,188.57,0.0001]
[1739747372290,5.3025,188.59,188.57,0.0001]
[1739747384900,5.3019,188.61,188.57,0.0001]
[1739747386206,5.3013,188.63,188.57,0.0001]
[1739747395708,13.2532,188.64,188.57,0.0001]
[1739747396589,5.3008,188.65,188.57,0.0001]
[1739747399611,0.03,188.66,188.57,0.0001]
[1739747399823,5.3305,188.66,188.57,0.0001]
[1739747402412,13.41184853,188.65,188.57,0.0001]
[1739747403322,13.41184853,188.61,188.57,0.0001]
[1739747404412,13.41184853,188.58,188.57,0.0001]
[1739747404799,20.0,188.55,188.51,0.063]
[1739747405205,13.41184853,188.54,188.51,0.063]
[1739747405624,33.41184853,188.52,188.51,0.063]
[1739747406424,38.71624853,188.52,188.51,0.063]
[1739747406623,0.2,188.55,188.51,0.063]
[1739747406833,5.3041,188.54,188.51,0.063]
[1739747407033,5.303,188.57,188.51,0.063]
[1739747407209,20.0,188.57,188.51,0.063]
[1739747407542,7.7071,188.6,188.51,15.27543558]
[1739747407543,5.3027,188.59,188.51,15.27543558]
[1739747407712,1.527,188.6,188.52,15.21243558]
[1739747408040,5.3013,188.63,188.53,15.21243558]
[1739747408937,20.0,188.61,188.52,15.21243558]
[1739747409136,13.41184853,188.6,188.51,0.063]
[1739747409632,20.0,188.61,188.51,15.27543558]
[1739747409846,20.0,188.61,188.52,15.21243558]
[1739747410402,20.0,188.61,188.51,20.58013558]
[1739747410636,4.3,188.6,188.51,20.58013558]
[1739747410811,9.6023,188.6,188.52,15.21243558]
[1739747411015,5.3023,188.6,188.52,15.21243558]
[1739747411435,5.3023,188.6,188.51,20.58013558]
[1739747412015,18.71414853,188.6,188.51,0.063]
[1739747412315,13.41184853,188.56,188.51,0.063]
[1739747412630,13.41184853,188.54,188.51,0.063]
[1739747412833,95.71184853,188.54,188.51,0.063]
[1739747413924,82.3,188.54,188.51,0.063]
[1739747414238,87.6041,188.54,188.51,0.063]
[1739747415148,82.5,188.59,188.51,0.063]
[1739747416037,18.71454853,188.58,188.51,0.063]
[1739747417116,5.3027,188.58,188.51,0.063]
[1739747417320,5.3025,188.59,188.51,15.27543558]
[1739747417927,5.3025,188.59,188.51,0.063]
[1739747418139,5.303,188.57,188.51,0.063]
[1739747418339,13.41184853,188.56,188.51,0.063]
[1739747419523,13.41184853,188.54,188.51,0.063]
[1739747421419,13.41184853,188.52,188.51,0.063]
[1739747422149,5.3041,188.53,188.51,0.063]
[1739747426150,87.6039,188.54,188.51,0.063]
[1739747426350,13.2571,188.58,188.51,0.063]
[1739747426351,5.303,188.57,188.51,0.063]
[1739747427728,13.41184853,188.56,188.51,0.063]
[1739747428249,5.3036,188.55,188.51,0.063]
[1739747428854,18.5626,188.55,188.51,0.063]
[1739747431056,13.41184853,188.54,188.51,0.063]
[1739747432730,5.3041,188.53,188.51,0.063]
[1739747439466,13.41184853,188.52,188.51,0.063]
[1739747440052,5.3041,188.53,188.51,0.063]
[1739747440970,13.41184853,188.52,188.51,0.063]
[1739747441655,20.0,188.52,188.51,0.063]
[1739747441857,33.41184853,188.52,188.51,0.063]
[1739747442871,38.71624853,188.52,188.51,0.063]
[1739747444853,25.3044,188.52,188.51,0.063]
[1739747447078,5.3044,188.52,188.51,0.063]
[1739747447652,26.67084853,188.55,188.51,0.063]
[1739747447849,5.3039,188.54,188.51,0.063]
[1739747448172,20.0,188.52,188.51,0.063]
[1739747449974,25.3044,188.52,188.51,0.063]
[1739747451570,5.3044,188.52,188.51,0.063]
[1739747452261,31.97444853,188.55,188.51,0.063]
[1739747453551,0.03,188.57,188.53,15.21243558]
[1739747453879,0.03,188.57,188.52,15.21243558]
[1739747454065,0.03,188.57,188.51,15.27543558]
[1739747454262,0.03,188.57,188.51,0.063]
[1739747454881,0.03,188.57,188.51,15.27543558]
[1739747455462,0.03,188.57,188.51,0.063]
[1739747456375,13.44184853,188.57,188.51,0.063]
[1739747456879,20.0,188.54,188.51,0.063]
[1739747458085,25.304,188.54,188.51,0.063]
[1739747458286,15.08034853,188.57,188.51,0.063]
[1739747458475,5.3033,188.56,188.51,0.063]
[1739747458678,5.3331,188.57,188.51,0.063]
[1739747460086,0.03,188.57,188.51,0.063]
[1739747460658,0.03,188.57,188.52,15.21243558]
[1739747461182,0.03,188.57,188.51,15.27543558]
[1739747461865,0.03,188.57,188.52,5.3044]
[1739747462383,0.03,188.57,188.51,15.27543558]
[1739747462560,0.03,188.57,188.51,20.58013558]
[1739747463380,0.03,188.57,188.51,5.3677]
[1739747465066,0.03,188.57,188.51,0.063]
[1739747466588,13.44184853,188.57,188.51,0.063]
[1739747467373,5.3033,188.56,188.51,0.063]
[1739747468385,18.5616,188.56,188.51,0.063]
[1739747468884,5.3033,188.56,188.51,0.063]
[1739747472391,13.41184853,188.53,188.51,0.063]
[1739747472775,1.6375,188.54,188.51,0.063]
[1739747473997,13.41184853,188.53,188.51,0.063]
[1739747474395,5.3044,188.52,188.51,0.063]
[1739747474911,5.3039,188.54,188.51,0.063]
[1739747475203,0.03,188.57,188.51,0.063]
[1739747475514,5.3332,188.57,188.51,15.27543558]
[1739747475871,0.03,188.57,188.53,15.21243558]
[1739747476069,5.3332,188.57,188.51,15.27543558]
[1739747476270,0.03,188.57,188.51,15.27543558]
[1739747476470,0.03,188.57,188.51,20.58013558]
[1739747476704,0.03,188.57,188.51,15.27543558]
[1739747476871,0.03,188.57,188.51,0.063]
[1739747477475,20.0,188.56,188.51,0.063]
[1739747477674,15.04934853,188.55,188.51,0.063]
[1739747478387,5.3039,188.54,188.51,0.063]
[1739747478598,5.3033,188.56,188.51,0.063]
[1739747479098,5.3332,188.57,188.51,0.063]
[1739747479602,0.03,188.57,188.52,15.21243558]
[1739747480102,0.03,188.57,188.51,15.27543558]
[1739747480278,5.333,188.57,188.51,0.063]
[1739747480482,0.03,188.57,188.51,0.063]
[1739747480982,20.03,188.57,188.51,0.063]
[1739747482005,13.41184853,188.56,188.51,0.063]
[1739747482603,5.3036,188.55,188.51,0.063]
[1739747483007,13.41184853,188.54,188.51,0.063]
[1739747483881,18.5626,188.55,188.51,0.063]
[1739747484915,13.259,188.55,188.51,0.063]
[1739747488187,5.3033,188.56,188.51,0.063]
[1739747488407,5.3033,188.56,188.51,15.27543558]
[1739747489284,0.03,188.57,188.51,15.27543558]
[1739747489621,0.03,188.57,188.52,15.21243558]
[1739747490098,0.03,188.57,188.51,0.063]
[1739747490903,20.0,188.56,188.51,0.063]
[1739747491714,5.3036,188.55,188.51,0.063]
[1739747494501,13.41184853,188.54,188.51,0.063]
[1739747495085,14.95584853,188.54,188.51,0.063]
[1739747495918,5.3041,188.53,188.51,0.063]
[1739747501422,13.41184853,188.52,188.51,0.063]
[1739747501915,18.71624853,188.52,188.51,0.063]
[1739747502302,5.3044,188.52,188.51,0.063]
[1739747505209,5.3041,188.53,188.51,0.063]
[1739747513198,18.71594853,188.53,188.51,0.063]
[1739747513414,13.41184853,188.52,188.51,0.063]
[1739747513920,5.3041,188.53,188.51,0.063]
[1739747517127,13.41184853,188.52,188.51,0.063]
[1739747518832,5.3041,188.53,188.51,0.063]
[1739747519008,18.71594853,188.53,188.51,0.063]
[1739747520212,5.3041,188.53,188.51,0.063]
[1739747521326,13.41184853,188.52,188.51,0.063]
[1739747521625,5.3041,188.53,188.51,0.063]
[1739747522130,18.71594853,188.53,188.51,0.063]
[1739747522923,13.41184853,188.52,188.51,0.063]
[1739747523428,18.71624853,188.52,188.51,0.063]
[1739747528723,5.3044,188.52,188.51,0.063]
[1739747528926,5.3044,188.52,188.5,0.063]
[1739747529235,13.41184853,188.51,188.49,0.063]
[1739747529418,13.41184853,188.51,188.47,0.063]
[1739747529419,5.305,188.5,188.47,0.063]
[1739747530040,13.41184853,188.49,188.47,0.063]
[1739747531630,5.3056,188.48,188.47,0.063]
[1739747533821,18.71744853,188.48,188.47,0.063]
[1739747534107,20.0,188.45,188.43,0.063]
[1739747534307,13.41184853,188.44,188.43,0.063]
[1739747535728,18.61854853,188.44,188.43,0.063]
[1739747541339,13.41184853,188.4,188.38,0.063]
[1739747543339,34.41184853,188.41,188.38,0.063]
[1739747543516,5.3078,188.4,188.38,0.063]
[1739747546443,0.2,188.43,188.38,0.063]
[1739747546633,5.3072,188.42,188.38,0.063]
[1739747548634,5.3064,188.45,188.38,0.063]
[1739747549128,20.0,188.42,188.38,0.063]
[1739747549334,5.3064,188.45,188.39,9.73440228]
[1739747549534,5.3064,188.45,188.38,1.5737]
[1739747551349,5.3694,188.45,188.38,1.5737]
[1739747555849,0.063,188.45,188.39,9.73440228]
[1739747556048,0.063,188.45,188.41,9.73440228]
[1739747556230,0.063,188.45,188.42,9.73440228]
[1739747556432,0.063,188.45,188.44,9.73440228]
[1739747557533,0.063,188.45,188.44,15.04110228]
[1739747558230,0.063,188.45,188.43,5.307]
[1739747560845,0.063,188.45,188.42,15.04160228]
[1739747561768,0.063,188.45,188.44,9.73440228]
[1739747562671,0.063,188.45,188.43,9.73440228]
[1739747563032,0.063,188.45,188.42,9.73440228]
[1739747563353,0.063,188.45,188.43,0.03]
[1739747564061,0.063,188.45,188.44,9.73440228]
[1739747564863,0.063,188.45,188.44,11.32810228]
[1739747565069,0.063,188.45,188.44,92.82810228]
[1739747566258,0.063,188.45,188.44,98.13480228]
[1739747566437,0.063,188.45,188.44,92.82810228]
[1739747566645,0.063,188.45,188.44,83.0937]
[1739747568162,0.063,188.45,188.44,92.82810228]
[1739747568333,0.063,188.45,188.44,83.0937]
[1739747569260,0.063,188.45,188.44,98.13480228]
[1739747573270,0.063,188.45,188.44,91.23440228]
[1739747575439,0.063,188.45,188.44,96.54110228]
[1739747576759,0.0001,188.45,188.44,69.39055993]
[1739747576951,0.03,188.57,188.48,21.6208]
[1739747577150,0.03,188.57,188.53,9.73440228]
[1739747577350,0.03,188.57,188.52,9.73440228]
[1739747577565,0.03,188.57,188.49,81.5]
[1739747577765,0.03,188.57,188.48,20.0]
[1739747578577,0.03,188.57,188.47,81.5]
[1739747579077,1.5808,188.54,188.43,98.19210228]
[1739747579263,1.5808,188.54,188.44,9.73440228]
[1739747579578,5.3041,188.53,188.44,9.73440228]
[1739747579963,5.3041,188.53,188.44,15.04100228]
[1739747580278,5.3041,188.53,188.47,9.73440228]
[1739747580662,5.3041,188.53,188.46,15.20763608]
[1739747580977,1.5808,188.54,188.48,15.20763608]
[1739747581173,0.03,188.57,188.51,15.20763608]
[1739747581487,0.03,188.57,188.49,15.20763608]
[1739747581664,0.03,188.57,188.47,15.20763608]
[1739747581867,0.03,188.57,188.48,15.20763608]
[1739747582564,0.03,188.57,188.49,15.20763608]
[1739747583576,13.44184853,188.57,188.49,15.20763608]
[1739747583753,13.44184853,188.57,188.47,81.5]
[1739747584488,20.0,188.54,188.47,81.5]
[1739747584657,4.26,188.53,188.47,81.5]
[1739747584848,24.26,188.53,188.44,81.5]
[1739747585063,5.3044,188.52,188.44,81.5]
[1739747587355,5.3044,188.52,188.44,96.70763608]
[1739747587570,5.3044,188.52,188.46,15.20763608]
[1739747588164,5.3044,188.52,188.44,102.01433608]
[1739747588486,13.41184853,188.55,188.44,102.01433608]
[1739747588672,31.97444853,188.55,188.45,15.20763608]
[1739747588986,31.97444853,188.55,188.44,102.01433608]
[1739747589201,31.97444853,188.55,188.44,96.70763608]
[1739747589491,31.97444853,188.55,188.44,102.01423608]
[1739747589874,31.97444853,188.55,188.45,15.20763608]
[1739747590193,5.3036,188.55,188.46,15.20763608]
[1739747590387,5.3036,188.55,188.45,15.20763608]
[1739747590691,5.3036,188.55,188.46,5.3061]
[1739747591688,5.3036,188.55,188.46,20.51373608]
[1739747593457,5.3036,188.55,188.47,15.20763608]
[1739747593656,5.3036,188.55,188.48,15.20763608]
[1739747594187,0.03,188.57,188.49,15.20763608]
[1739747594483,5.3033,188.56,188.49,15.20763608]
[1739747595059,5.3033,188.56,188.5,15.20763608]
[1739747595370,0.03,188.57,188.5,15.20763608]
[1739747595371,5.3331,188.57,188.5,15.20763608]
[1739747595672,0.03,188.57,188.5,20.51243608]
[1739747595865,0.03,188.57,188.51,15.20763608]
[1739747597085,0.03,188.57,188.51,20.51223608]
[1739747597988,0.03,188.57,188.52,15.20763608]
[1739747598989,0.03,188.57,188.52,20.51203608]
[1739747599186,0.03,188.57,188.52,5.3044]
[1739747600681,0.03,188.57,188.53,15.20763608]
[1739747601872,0.03,188.57,188.54,5.3039]
[1739747602191,0.03,188.57,188.54,20.51153608]
[1739747602372,0.03,188.57,188.55,15.20763608]
[1739747603574,0.03,188.57,188.56,15.20763608]
[1739747603774,0.03,188.57,188.56,16.00290608]
[1739747605190,0.03,188.57,188.56,15.20763608]
[1739747605374,0.03,188.57,188.55,15.20763608]
[1739747605690,0.03,188.57,188.53,81.5]
[1739747605891,0.03,188.57,188.51,15.20763608]
[1739747608366,0.03,188.57,188.51,20.51233608]
[1739747608572,0.03,188.57,188.51,40.51233608]
[1739747609991,0.03,188.57,188.51,35.20763608]
[1739747610690,0.03,188.57,188.51,40.51223608]
[1739747611673,0.03,188.57,188.51,122.01223608]
[1739747613111,0.03,188.57,188.52,15.20763608]
[1739747613497,0.03,188.57,188.52,20.51203608]
[1739747613672,0.03,188.57,188.52,15.20763608]
[1739747615498,0.03,188.57,188.51,101.5]
[1739747615802,0.03,188.57,188.51,81.5]
[1739747615984,0.03,188.57,188.47,102.01343608]
[1739747616189,0.03,188.57,188.47,96.70763608]
[1739747616386,0.03,188.57,188.47,102.01343608]
[1739747617289,0.03,188.57,188.47,96.70763608]
[1739747617595,0.03,188.57,188.47,102.01343608]
[1739747618809,0.03,188.57,188.48,15.20763608]
[1739747619105,0.03,188.57,188.48,20.51313608]
[1739747619300,0.03,188.57,188.49,15.20763608]
[1739747619603,0.03,188.57,188.5,15.20763608]
[1739747619995,0.03,188.57,188.49,15.20763608]
[1739747620196,0.03,188.57,188.47,102.01343608]
[1739747620579,0.03,188.57,188.48,15.20763608]
[1739747620990,0.03,188.57,188.48,20.51303608]
[1739747621401,0.03,188.57,188.49,15.20763608]
[1739747621591,0.03,188.57,188.52,15.20763608]
[1739747621796,0.03,188.57,188.51,15.20763608]
[1739747621999,0.03,188.57,188.5,15.20763608]
[1739747623283,0.03,188.57,188.5,20.51253608]
[1739747624480,0.03,188.57,188.5,15.20763608]
[1739747624685,0.03,188.57,188.49,102.01283608]
[1739747625312,0.03,188.57,188.49,81.5]
[1739747626710,0.03,188.57,188.46,5.3061]
[1739747626711,13.44184853,188.57,188.46,5.3061]
[1739747626889,13.44184853,188.57,188.46,86.8061]
[1739747627609,5.3033,188.56,188.46,102.01373608]
[1739747628307,1.5129,188.54,188.45,0.03]
[1739747628807,1.5129,188.54,188.45,20.54393608]
[1739747629015,1.5129,188.54,188.47,15.20763608]
[1739747629591,6.817,188.54,188.47,15.20763608]
[1739747629999,6.817,188.54,188.47,20.51333608]
[1739747631200,6.817,188.54,188.46,15.20763608]
[1739747632107,0.03,188.57,188.46,15.20763608]
[1739747632316,5.3036,188.56,188.49,15.20763608]
[1739747632701,5.3331,188.57,188.49,15.20763608]
[1739747633513,5.3331,188.57,188.49,20.51273608]
[1739747634811,5.3331,188.57,188.49,5.3051]
[1739747636109,5.3331,188.57,188.49,20.51273608]
[1739747637219,5.3331,188.57,188.49,5.3051]
[1739747638304,18.5907,188.57,188.48,81.5]
[1739747641339,18.5907,188.57,188.47,5.3058]
[1739747645025,18.5907,188.57,188.47,15.0381272]
[1739747645736,5.3331,188.57,188.49,9.7323272]
[1739747645927,0.03,188.57,188.51,9.7323272]
[1739747646227,0.03,188.57,188.52,9.7323272]
[1739747646613,0.03,188.57,188.51,91.2323272]
[1739747647405,0.03,188.57,188.52,15.0367272]
[1739747648737,0.03,188.57,188.54,9.7323272]
[1739747649112,0.03,188.57,188.55,9.7323272]
[1739747649514,0.03,188.57,188.55,91.2323272]
[1739747650117,0.03,188.57,188.55,81.5]
[1739747651020,0.03,188.57,188.55,91.2323272]
[1739747651222,0.03,188.57,188.56,9.7323272]
[1739747651422,0.03,188.57,188.55,96.5357272]
[1739747653948,0.03,188.57,188.56,9.7323272]
[1739747655917,0.03,188.57,188.56,15.0356272]
[1739747659252,0.03,188.57,188.56,96.5356272]
[1739747661728,0.0001,188.57,188.56,111.74252233]
[1739747661937,0.0001,188.57,188.56,113.51517573]
[1739747663143,0.0001,188.57,188.56,112.51517573]
[1739747667560,0.0001,188.59,188.58,21.0]
[1739747667759,0.0001,188.59,188.58,106.43913126]
[1739747667947,0.0001,188.59,188.58,106.64417573]
[1739747669164,0.0001,188.63,188.62,35.41184853]
[1739747669345,0.0001,188.63,188.62,125.64417573]
[1739747670166,0.0001,188.63,188.62,126.64417573]
[1739747670460,0.0001,188.63,188.62,125.64417573]
[1739747670948,0.0001,188.63,188.62,130.94577573]
[1739747671472,0.0001,188.63,188.62,131.94577573]
[1739747673083,0.0001,188.63,188.62,170.87508453]
[1739747673371,0.0001,188.64,188.63,2.0]
[1739747673667,0.0001,188.64,188.63,51.45638922]
[1739747673969,0.0001,188.64,188.63,132.95638922]
[1739747674146,0.0001,188.64,188.63,93.2323272]
[1739747674347,0.0001,188.64,188.63,93.02709772]
[1739747674875,0.0001,188.64,188.63,92.02709772]
[1739747675065,0.0001,188.64,188.63,97.32839772]
[1739747675853,0.0001,188.64,188.63,110.74024625]
[1739747676054,0.0001,188.64,188.63,109.94547573]
[1739747676953,0.0001,188.64,188.63,110.94547573]
[1739747678166,0.0001,188.64,188.63,109.94547573]
[1739747678650,0.0001,188.64,188.63,110.94547573]
[1739747678851,0.0001,188.64,188.63,109.94547573]
[1739747682271,0.0001,188.64,188.63,96.5336272]
[1739747682472,0.0001,188.64,188.63,86.8013]
[1739747682774,0.0001,188.64,188.63,81.5]
[1739747684251,0.0001,188.64,188.6,81.5]
[1739747686880,0.0001,188.64,188.57,83.98]
[1739747687669,0.0001,188.64,188.57,15.0351272]
[1739747688680,0.0001,188.64,188.58,9.7323272]
[1739747688990,0.0001,188.64,188.59,9.7323272]
[1739747689277,0.0001,188.64,188.57,15.0351272]
[1739747689785,0.0001,188.64,188.57,15.0981272]
[1739747689979,0.0001,188.64,188.58,9.7323272]
[1739747690187,0.0001,188.64,188.59,9.7323272]
[1739747690786,0.0001,188.64,188.6,9.7323272]
[1739747691362,0.0001,188.64,188.59,9.7323272]